fUST/lending_fUST_20260102
["ID","MTS","AMOUNT","RATE_DAILY","PERIOD"]
[400302009,1767322244729,-500.0,0.0001287,2]
[400302010,1767322244738,-500.0,0.0001287,2]
[400302011,1767322244748,-500.0,0.0001287,2]
[400302012,1767322244871,-500.0,0.0001287,2]
[400302013,1767322244881,-500.0,0.0001287,2]
[400302014,1767322244891,-500.0,0.0001287,2]
[400302015,1767322244901,-500.0,0.0001287,2]
[400302016,1767322244911,-469.52974372,0.0001287,2]
[400302017,1767322244920,-500.0,0.0001287,2]
[400302018,1767322244930,-500.0,0.0001287,2]
[400302019,1767322244940,-500.0,0.0001287,2]
[400302020,1767322244949,-500.0,0.0001287,2]
[400302021,1767322244958,-500.0,0.0001287,2]
[400302022,1767322244968,-500.0,0.0001287,2]
[400302023,1767322244977,-500.0,0.0001287,2]
[400302024,1767322244987,-7472.6233412,0.00012871,2]
[400302025,1767322244999,-2517.96006472,0.00012871,2]
[400302026,1767322245038,-1036.0,0.00012871,2]
[400302108,1767322246412,-46991.18073583,0.00012871,2]
[400302110,1767322246424,-501.96799976,0.00012871,2]
[400302112,1767322246435,-264.40334013,0.00012871,2]
[400302113,1767322246465,-454.932072,0.00012871,2]
[400302115,1767322314492,-153.66,0.0001,2]
[400302118,1767322621491,5000.0,9.76e-05,2]
[400302120,1767322789808,-150.0,0.000102,2]
[400302121,1767322918715,2061.10261626,0.00028767,120]
[400302207,1767323432884,-153.78,0.0001,2]
[400302208,1767323432893,-150.0,0.00010225,2]
[400302209,1767323432903,-240.9,0.00010939,2]
[400302210,1767323432912,-153.78,0.000112,2]
[400302211,1767323432922,-35.03220828,0.0001146,2]
[400302251,1767323438587,-446.76779172,0.0001146,2]
[400302253,1767323438597,-722.69,0.00011981,2]
[400302255,1767323438607,-500.0,0.00012131,2]
[400302257,1767323438616,-500.0,0.00012131,2]
[400302259,1767323438625,-500.0,0.00012131,2]
[400302261,1767323438635,-500.0,0.00012131,2]
[400302263,1767323438645,-500.0,0.00012131,2]
[400302265,1767323438655,-500.0,0.00012131,2]
[400302267,1767323438665,-500.0,0.00012131,2]
[400302269,1767323438675,-500.0,0.00012131,2]
[400302271,1767323438685,-434.3445208,0.00012131,2]
[400302272,1767323438694,-500.0,0.00012131,2]
[400302274,1767323438704,-500.0,0.00012131,2]
[400302276,1767323438713,-500.0,0.00012131,2]
[400302278,1767323438723,-500.0,0.00012131,2]
[400302280,1767323438734,-500.0,0.00012131,2]
[400302282,1767323438746,-500.0,0.00012131,2]
[400302283,1767323438755,-500.0,0.00012131,2]
[400302284,1767323438765,-500.0,0.00012131,2]
[400302285,1767323438775,-500.0,0.00012131,2]
[400302286,1767323438784,-500.0,0.00012131,2]
[400302287,1767323438794,-500.0,0.00012131,2]
[400302288,1767323438803,-500.0,0.00012131,2]
[400302289,1767323438812,-500.0,0.00012131,2]
[400302290,1767323438821,-500.0,0.00012131,2]
[400302291,1767323438830,-500.0,0.00012131,2]
[400302292,1767323438840,-500.0,0.00012131,2]
[400302293,1767323438849,-350.0,0.00012131,2]
[400302294,1767323438858,-500.0,0.00012131,2]
[400302295,1767323438868,-500.0,0.00012131,2]
[400302296,1767323438878,-500.0,0.00012131,2]
[400302297,1767323438888,-500.0,0.00012131,2]
[400302298,1767323438898,-500.0,0.00012131,2]
[400302299,1767323438909,-500.0,0.00012131,2]
[400302300,1767323438919,-500.0,0.00012131,2]
[400302301,1767323438930,-500.0,0.00012131,2]
[400302302,1767323438940,-500.0,0.00012131,2]
[400302303,1767323438950,-582.15517185,0.00012131,2]
[400302304,1767323438959,-450.76293887,0.00012131,2]
[400302305,1767323438969,-500.0,0.00012131,2]
[400302306,1767323438979,-500.0,0.00012131,2]
[400302307,1767323438989,-500.0,0.00012131,2]
[400302308,1767323438999,-500.0,0.00012131,2]
[400302309,1767323439010,-500.0,0.00012131,2]
[400302310,1767323439020,-500.0,0.00012131,2]
[400302311,1767323439030,-500.0,0.00012131,2]
[400302312,1767323439039,-152.80760043,0.00012131,2]
[400302313,1767323439049,-1200.0,0.00012131,2]
[400302314,1767323439058,-289.0,0.00012131,2]
[400302315,1767323439069,-300.0,0.00012131,2]
[400302316,1767323439078,-166.0,0.00012131,2]
[400302317,1767323439088,-1200.0,0.00012131,2]
[400302318,1767323439098,-50000.0,0.00012132,2]
[400302319,1767323439108,-160.28,0.00012133,2]
[400302320,1767323439117,-500.0,0.00012135,2]
[400302321,1767323439126,-286.17240221,0.00012136,2]
[400302322,1767323439136,-565.78390728,0.00012136,2]
[400302323,1767323439146,-500.0,0.00012136,2]
[400302324,1767323439155,-500.0,0.00012136,2]
[400302325,1767323439164,-500.0,0.00012136,2]
[400302326,1767323439174,-607.57355594,0.00012136,2]
[400302327,1767323439184,-500.0,0.00012136,2]
[400302328,1767323439194,-500.0,0.00012136,2]
[400302329,1767323439203,-500.0,0.00012136,2]
[400302330,1767323439212,-500.0,0.00012136,2]
[400302331,1767323439222,-500.0,0.00012136,2]
[400302332,1767323439232,-500.0,0.00012136,2]
[400302333,1767323439241,-500.0,0.00012136,2]
[400302334,1767323439251,-500.0,0.00012136,2]
[400302335,1767323439260,-151147.4250436,0.00012138,2]
[400302336,1767323439273,-553.1658229,0.00012138,2]
[400302340,1767323440642,-1556.18249021,0.00012138,2]
[400302341,1767323440655,-13769.552025,0.00012138,2]
[400302349,1767323445613,-371.12484557,0.00012138,2]
[400302350,1767323445669,-1839.72247306,0.00012138,2]
[400302351,1767323445681,-5048.11684053,0.00012138,2]
[400302354,1767323446620,-877.01350082,0.00012138,2]
[400302355,1767323446676,-275017.89206991,0.00012138,2]
[400302356,1767323446732,-9239.59067387,0.00012138,2]
[400302357,1767323446749,-25314.172062,0.00012138,2]
[400302361,1767323690623,-410.94954986,9.9e-05,2]
[400302362,1767323690644,-153.78,0.0001,2]
[400302365,1767324067730,5000.0,9.76e-05,2]
[400302376,1767324097898,-300.0,9.899e-05,2]
[400302377,1767324097919,-559.0,9.9e-05,2]
[400302378,1767324097940,-141.0,0.0001,2]
[400302379,1767324110669,-13.65,0.0001,2]
[400302380,1767324110690,-300.0,0.00010097,2]
[400302381,1767324110711,-300.0,0.00010097,2]
[400302382,1767324110731,-300.0,0.00010097,2]
[400302383,1767324110752,-86.35,0.00010097,2]
[400302384,1767324116857,-213.65,0.00010097,2]
[400302385,1767324116879,-300.0,0.00010097,2]
[400302386,1767324116902,-300.0,0.00010097,2]
[400302387,1767324116924,-186.35,0.00010097,2]
[400302388,1767324118914,-113.65,0.00010097,2]
[400302389,1767324118936,-300.0,0.00010097,2]
[400302390,1767324118958,-300.0,0.00010097,2]
[400302391,1767324118979,-286.35,0.00010097,2]
[400302392,1767324123477,-13.65,0.00010097,2]
[400302393,1767324123500,-300.0,0.00010097,2]
[400302394,1767324123520,-300.0,0.00010097,2]
[400302395,1767324123541,-300.0,0.00010097,2]
[400302396,1767324123562,-86.35,0.00010097,2]
[400302397,1767324125289,-213.65,0.00010097,2]
[400302398,1767324125312,-300.0,0.00010097,2]
[400302399,1767324125333,-150.0,0.00010175,2]
[400302401,1767324370067,5000.0,0.00028767,120]
[400302406,1767324511824,-153.83,0.0001,2]
[400302407,1767324512070,5000.0,0.0002875,120]
[400302408,1767324513753,4518.0,0.00028767,120]
[400302412,1767324539664,333.48199856,0.00011,10]
[400302468,1767324633024,-153.83,0.0001,2]
[400302469,1767324633034,-247.32789213,0.0001008,2]
[400302486,1767324638554,-313.67210787,0.0001008,2]
[400302487,1767324638565,-150.0,0.0001008,2]
[400302488,1767324638574,-420.7611005,0.0001016,2]
[400302489,1767324638583,-1200.0,0.00010198,2]
[400302490,1767324638592,-300.0,0.00010198,2]
[400302491,1767324638602,-300.0,0.00010198,2]
[400302492,1767324638612,-300.0,0.00010198,2]
[400302493,1767324638621,-300.0,0.00010198,2]
[400302494,1767324638630,-1200.0,0.00010198,2]
[400302495,1767324638641,-300.0,0.00010199,2]
[400302496,1767324638650,-300.0,0.00010199,2]
[400302497,1767324638660,-300.0,0.00010199,2]
[400302498,1767324638671,-300.0,0.00010199,2]
[400302499,1767324638680,-300.0,0.00010199,2]
[400302500,1767324638690,-300.0,0.00010199,2]
[400302501,1767324638699,-300.0,0.00010199,2]
[400302502,1767324638708,-300.0,0.00010199,2]
[400302503,1767324638718,-300.0,0.00010199,2]
[400302504,1767324638734,-300.0,0.00010199,2]
[400302505,1767324638747,-300.0,0.00010199,2]
[400302506,1767324638757,-300.0,0.00010199,2]
[400302507,1767324638767,-200.91376695,0.00010199,2]
[400302508,1767324638823,-99.08623305,0.00010199,2]
[400302509,1767324638833,-300.0,0.00010199,2]
[400302510,1767324638843,-300.0,0.00010199,2]
[400302511,1767324638853,-600.0,0.00010402,2]
[400302512,1767324638862,-224.41,0.00010888,2]
[400302513,1767324638872,-486.0,0.00011216,2]
[400302514,1767324638882,-420.0,0.00011216,2]
[400302515,1767324638893,-1680.0,0.00011218,2]
[400302516,1767324638902,-153.83,0.000114,2]
[400302517,1767324638912,-448.82,0.00011406,2]
[400302518,1767324638921,-720.0,0.00011442,2]
[400302519,1767324638931,-318.20179355,0.00011585,2]
[400302520,1767324638941,-363.29553343,0.00011585,2]
[400302521,1767324638950,-383.5839038,0.00011699,2]
[400302522,1767324638960,-376.458701,0.00011699,2]
[400302523,1767324638969,-376.458701,0.00011699,2]
[400302524,1767324638979,-376.458701,0.00011699,2]
[400302525,1767324638988,-376.458701,0.00011699,2]
[400302526,1767324638999,-429.8454193,0.00011699,2]
[400302527,1767324639009,-376.458701,0.00011699,2]
[400302528,1767324639018,-376.458701,0.00011699,2]
[400302529,1767324639028,-376.458701,0.00011699,2]
[400302530,1767324639038,-376.458701,0.00011699,2]
[400302531,1767324639047,-376.458701,0.00011699,2]
[400302532,1767324639057,-376.458701,0.00011699,2]
[400302533,1767324639067,-376.458701,0.00011699,2]
[400302534,1767324639077,-376.458701,0.00011699,2]
[400302535,1767324639086,-376.458701,0.00011699,2]
[400302536,1767324639097,-376.458701,0.00011699,2]
[400302537,1767324639107,-500.0,0.00011699,2]
[400302538,1767324639117,-2480.34481955,0.00011854,2]
[400302539,1767324639126,-673.23,0.00011925,2]
[400302540,1767324639136,-396.04873509,0.00011928,2]
[400302541,1767324639146,-500.0,0.00011928,2]
[400302542,1767324639156,-200.32068154,0.00011928,2]
[400302543,1767324639166,-500.0,0.00011928,2]
[400302544,1767324639176,-500.0,0.00011928,2]
[400302545,1767324639186,-500.0,0.00011928,2]
[400302546,1767324639195,-500.0,0.00011928,2]
[400302547,1767324639205,-500.0,0.00011928,2]
[400302548,1767324639217,-500.0,0.00011928,2]
[400302549,1767324639226,-500.0,0.00011928,2]
[400302550,1767324639236,-500.0,0.00011928,2]
[400302551,1767324639245,-500.0,0.00011928,2]
[400302552,1767324639256,-614.84993693,0.00011928,2]
[400302553,1767324639266,-347.34831729,0.00011928,2]
[400302554,1767324639279,-152.65168271,0.00011928,2]
[400302555,1767324639289,-500.0,0.00011928,2]
[400302556,1767324639299,-500.0,0.00011928,2]
[400302557,1767324639309,-500.0,0.00011928,2]
[400302558,1767324639319,-500.0,0.00011928,2]
[400302559,1767324639329,-500.0,0.00011928,2]
[400302560,1767324639339,-500.0,0.00011928,2]
[400302561,1767324639349,-500.0,0.00011928,2]
[400302562,1767324639358,-500.0,0.00011928,2]
[400302563,1767324639368,-500.0,0.00011928,2]
[400302564,1767324639378,-500.0,0.00011928,2]
[400302565,1767324639387,-500.0,0.00011928,2]
[400302566,1767324639397,-412.98538816,0.00011928,2]
[400302567,1767324639409,-87.01461184,0.00011928,2]
[400302568,1767324639419,-500.0,0.00011928,2]
[400302569,1767324639428,-500.0,0.00011928,2]
[400302570,1767324639437,-500.0,0.00011928,2]
[400302571,1767324639447,-125.81136016,0.00011928,2]
[400302572,1767324639458,-374.18863984,0.00011928,2]
[400302573,1767324639614,-500.0,0.00011928,2]
[400302574,1767324639623,-459.42859216,0.00011928,2]
[400302575,1767324639636,-40.57140784,0.00011928,2]
[400302576,1767324639644,-411.51659843,0.00011928,2]
[400302577,1767324639655,-233.00332803,0.00011928,2]
[400302578,1767324639665,-500.0,0.00011928,2]
[400302579,1767324639674,-500.0,0.00011928,2]
[400302580,1767324639683,-500.0,0.00011928,2]
[400302581,1767324639692,-500.0,0.00011928,2]
[400302582,1767324639701,-360.80977375,0.00011928,2]
[400302583,1767324639712,-139.19022625,0.00011928,2]
[400302584,1767324639721,-418.90947375,0.00011928,2]
[400302585,1767324639732,-81.09052625,0.00011928,2]
[400302586,1767324639741,-500.0,0.00011928,2]
[400302587,1767324639749,-500.0,0.00011928,2]
[400302588,1767324639758,-500.0,0.00011928,2]
[400302589,1767324639767,-500.0,0.00011928,2]
[400302590,1767324639776,-500.0,0.00011928,2]
[400302591,1767324639785,-87.88947375,0.00011928,2]
[400302592,1767324639797,-412.11052625,0.00011928,2]
[400302593,1767324639806,-555.61398991,0.00011928,2]
[400302604,1767324640777,-93.39731493,0.00011928,2]
[400302605,1767324640786,-595.69965851,0.00011928,2]
[400302606,1767324640796,-500.0,0.00011928,2]
[400302607,1767324640805,-500.0,0.00011928,2]
[400302608,1767324640814,-500.0,0.00011928,2]
[400302609,1767324640823,-500.0,0.00011928,2]
[400302610,1767324640832,-500.0,0.00011928,2]
[400302611,1767324640840,-500.0,0.00011928,2]
[400302612,1767324640849,-500.0,0.00011928,2]
[400302613,1767324640858,-500.0,0.00011928,2]
[400302614,1767324640867,-500.0,0.00011928,2]
[400302615,1767324640876,-500.0,0.00011928,2]
[400302616,1767324640885,-500.0,0.00011928,2]
[400302617,1767324640894,-500.0,0.00011928,2]
[400302618,1767324640903,-5745.54652358,0.00011929,2]
[400302619,1767324641161,-1443.40872306,0.00011929,2]
[400302620,1767324641172,-445.525,0.00011929,2]
[400302629,1767324645759,-5334.32048192,0.00011929,2]
[400302644,1767324646701,-1931.59,0.00011929,2]
[400302645,1767324646759,-5288.01280086,0.00011929,2]
[400302646,1767324757012,161.0,0.000287,120]
[400302650,1767324974019,5000.0,0.00011,10]
[400302660,1767325743291,5000.0,9.76e-05,2]
[400302661,1767325756333,-183.41162331,9.933e-05,2]
[400302662,1767325756354,-330.14092196,9.933e-05,2]
[400302663,1767325756374,-586.91719459,9.933e-05,2]
[400302664,1767325756394,-917.05811655,9.933e-05,2]
[400302665,1767325756416,-560.0,0.0001,2]
[400302700,1767325831783,-153.57,0.0001,2]
[400302702,1767325831792,-5000.0,0.00010016,2]
[400302704,1767325831801,-560.0,0.00010016,2]
[400302706,1767325831810,-322.81059523,0.00010118,2]
[400302708,1767325831821,-150.0,0.00010187,2]
[400302710,1767325831830,-153.57,0.000106,2]
[400302711,1767325831839,-294.27,0.00010893,2]
[400302712,1767325831848,-1200.0,0.0001104,2]
[400302713,1767325831856,-467.1463864,0.00011041,2]
[400302714,1767325831865,-153.57,0.000111,2]
[400302716,1767325831874,-300.0,0.00011352,2]
[400302717,1767325831882,-390.22394865,0.00011353,2]
[400302719,1767325831891,-445.97022702,0.00011353,2]
[400302721,1767325831900,-696.82847972,0.00011353,2]
[400302723,1767325831909,-588.55,0.00011412,2]
[400302725,1767325831918,-1056.61233533,0.00011677,2]
[400302749,1767325838941,-2292.4151478,0.0001156,2]
[400302763,1767325840055,-1804.3590956,0.0001156,2]
[400302764,1767325840067,-1423.73248422,0.00011677,2]
[400302765,1767325840079,-153.57,0.000117,2]
[400302766,1767325840092,-4821.31606162,0.000118,2]
[400302767,1767325840106,-500.0,0.00011826,2]
[400302768,1767325840117,-262.29161771,0.00011826,2]
[400302769,1767325840164,-237.70838229,0.00011826,2]
[400302770,1767325840175,-500.0,0.00011826,2]
[400302771,1767325840186,-500.0,0.00011826,2]
[400302772,1767325840197,-500.0,0.00011826,2]
[400302773,1767325840209,-250.16211652,0.00011826,2]
[400302802,1767325844819,-249.83788348,0.00011826,2]
[400302803,1767325844829,-500.0,0.00011826,2]
[400302804,1767325844839,-500.0,0.00011826,2]
[400302805,1767325844848,-500.0,0.00011826,2]
[400302806,1767325844858,-500.0,0.00011826,2]
[400302807,1767325844867,-206.93726387,0.00011826,2]
[400302808,1767325844876,-500.0,0.00011826,2]
[400302809,1767325844886,-500.0,0.00011826,2]
[400302810,1767325844895,-500.0,0.00011826,2]
[400302811,1767325844904,-500.0,0.00011826,2]
[400302812,1767325844914,-500.0,0.00011826,2]
[400302813,1767325844923,-500.0,0.00011826,2]
[400302814,1767325844933,-500.0,0.00011826,2]
[400302815,1767325844943,-500.0,0.00011826,2]
[400302816,1767325844953,-500.0,0.00011826,2]
[400302817,1767325844962,-500.0,0.00011826,2]
[400302818,1767325844971,-500.0,0.00011826,2]
[400302819,1767325844980,-500.0,0.00011826,2]
[400302820,1767325844990,-500.0,0.00011826,2]
[400302821,1767325844999,-500.0,0.00011826,2]
[400302822,1767325845008,-500.0,0.00011826,2]
[400302823,1767325845017,-500.0,0.00011826,2]
[400302824,1767325845026,-504.08367302,0.00011826,2]
[400302825,1767325845035,-500.0,0.00011826,2]
[400302826,1767325845044,-215.10313473,0.00011826,2]
[400302827,1767325845054,-500.0,0.00011826,2]
[400302828,1767325845063,-500.0,0.00011826,2]
[400302829,1767325845073,-500.0,0.00011826,2]
[400302830,1767325845082,-500.0,0.00011826,2]
[400302831,1767325845092,-500.0,0.00011826,2]
[400302832,1767325845102,-500.0,0.00011826,2]
[400302833,1767325845112,-500.0,0.00011826,2]
[400302834,1767325845122,-381.79369827,0.00011826,2]
[400302835,1767325845131,-500.0,0.00011826,2]
[400302836,1767325845142,-349.89014498,0.00011826,2]
[400302837,1767325845153,-500.0,0.00011826,2]
[400302838,1767325845162,-500.0,0.00011826,2]
[400302839,1767325845173,-500.0,0.00011826,2]
[400302840,1767325845182,-500.0,0.00011826,2]
[400302841,1767325845191,-500.0,0.00011826,2]
[400302843,1767325845200,-500.0,0.00011826,2]
[400302845,1767325845209,-500.0,0.00011826,2]
[400302847,1767325845218,-500.0,0.00011826,2]
[400302848,1767325845227,-500.0,0.00011826,2]
[400302849,1767325845237,-325.75485536,0.00011826,2]
[400302850,1767325845247,-500.0,0.00011826,2]
[400302851,1767325845256,-427.23411457,0.00011826,2]
[400302852,1767325845265,-500.0,0.00011826,2]
[400302853,1767325845275,-333.95425093,0.00011826,2]
[400302854,1767325845284,-500.0,0.00011826,2]
[400302855,1767325845293,-500.0,0.00011826,2]
[400302856,1767325845302,-500.0,0.00011826,2]
[400302857,1767325845311,-500.0,0.00011826,2]
[400302858,1767325845320,-500.0,0.00011826,2]
[400302859,1767325845329,-500.0,0.00011826,2]
[400302860,1767325845338,-500.0,0.00011826,2]
[400302861,1767325845347,-500.0,0.00011826,2]
[400302862,1767325845355,-500.0,0.00011826,2]
[400302863,1767325845364,-500.0,0.00011826,2]
[400302864,1767325845374,-500.0,0.00011826,2]
[400302865,1767325845383,-160.28,0.00011826,2]
[400302866,1767325845392,-1066.77575336,0.00011827,2]
[400302867,1767325845411,-19584.54370645,0.00011827,2]
[400302868,1767325845422,-4260.0,0.00011827,2]
[400302872,1767325846038,-252882.0273486,0.00011827,2]
[400302873,1767325846049,-52208.8895208,0.00011827,2]
[400302874,1767325846061,-725.61998,0.00011827,2]
[400302875,1767325846089,-1259.30593299,0.00011827,2]
[400302916,1767326065335,153.0,7.9e-07,2]
[400302917,1767326066495,153.0,7.9e-07,2]
[400302918,1767326067388,153.0,7.9e-07,2]
[400302919,1767326068477,153.0,7.9e-07,2]
[400302923,1767326468160,4388.01,9.76e-05,2]
[400302924,1767326468184,611.99,9.76e-05,2]
[400302925,1767326491123,5000.0,9.76e-05,2]
[400302926,1767326528007,182.47223221,0.00023564,120]
[400302934,1767326817946,192.36745613,9.734e-05,2]
[400302935,1767326820699,345.91515962,9.734e-05,2]
[400302991,1767327031781,-150.0,9.9e-05,2]
[400302993,1767327031790,-559.0,9.9e-05,2]
[400302995,1767327031800,-153.59,0.0001,2]
[400302997,1767327031809,-94.03484928,0.00010096,2]
[400303001,1767327031834,-205.96515072,0.00010096,2]
[400303003,1767327031843,-331.71339287,0.00010096,2]
[400303005,1767327031854,-597.21929559,0.00010096,2]
[400303007,1767327031865,-271.06731154,0.00010096,2]
[400303009,1767327031874,-300.0,0.00010097,2]
[400303011,1767327031883,-300.0,0.00010097,2]
[400303013,1767327031894,-300.0,0.00010097,2]
[400303015,1767327031903,-300.0,0.00010097,2]
[400303033,1767327032055,-300.0,0.00010097,2]
[400303035,1767327032064,-300.0,0.00010097,2]
[400303036,1767327032074,-300.0,0.00010097,2]
[400303038,1767327032083,-300.0,0.00010097,2]
[400303040,1767327032092,-300.0,0.00010097,2]
[400303042,1767327032102,-300.0,0.00010097,2]
[400303044,1767327032111,-300.0,0.00010097,2]
[400303045,1767327032119,-300.0,0.00010097,2]
[400303046,1767327032128,-300.0,0.00010097,2]
[400303047,1767327032138,-300.0,0.00010097,2]
[400303048,1767327032147,-300.0,0.00010097,2]
[400303049,1767327032156,-600.0,0.00010298,2]
[400303050,1767327032165,-6052.6182401,0.00010594,2]
[400303051,1767327032174,-153.59,0.000106,2]
[400303052,1767327032183,-284.95,0.00010758,2]
[400303053,1767327032192,-420.0,0.00011105,2]
[400303054,1767327032201,-1680.0,0.00011106,2]
[400303055,1767327032210,-569.9,0.0001127,2]
[400303056,1767327032219,-153.59,0.000113,2]
[400303057,1767327032229,-720.0,0.00011328,2]
[400303058,1767327032237,-828.22039747,0.00011407,7]
[400303059,1767327032247,-500.0,0.00011495,2]
[400303060,1767327032256,-2480.34481955,0.0001153,2]
[400303061,1767327032265,-277.1,0.00011626,4]
[400303062,1767327032275,-151.0,0.000117,2]
[400303063,1767327032284,-151.0,0.000117,2]
[400303064,1767327032293,-151.0,0.000117,2]
[400303065,1767327032302,-500.0,0.00011725,2]
[400303066,1767327032311,-500.0,0.00011725,2]
[400303067,1767327032321,-500.0,0.00011725,2]
[400303068,1767327032330,-210.33975886,0.00011725,2]
[400303069,1767327032339,-500.0,0.00011725,2]
[400303070,1767327032348,-500.0,0.00011725,2]
[400303071,1767327032357,-316.97388986,0.00011725,2]
[400303072,1767327032366,-494.67091905,0.00011725,2]
[400303073,1767327032375,-500.0,0.00011725,2]
[400303074,1767327032385,-500.0,0.00011725,2]
[400303075,1767327032394,-500.0,0.00011725,2]
[400303076,1767327032403,-500.0,0.00011725,2]
[400303077,1767327032412,-500.0,0.00011725,2]
[400303078,1767327032421,-500.0,0.00011725,2]
[400303079,1767327032431,-500.0,0.00011725,2]
[400303080,1767327032440,-500.0,0.00011725,2]
[400303081,1767327032449,-389.34263034,0.00011725,2]
[400303082,1767327032459,-500.0,0.00011725,2]
[400303083,1767327032468,-515.88642388,0.00011725,2]
[400303084,1767327032477,-500.0,0.00011725,2]
[400303085,1767327032486,-500.0,0.00011725,2]
[400303086,1767327032495,-500.0,0.00011725,2]
[400303087,1767327032505,-544.27379758,0.00011725,2]
[400303088,1767327032514,-500.0,0.00011725,2]
[400303089,1767327032527,-460.65738161,0.00011725,2]
[400303090,1767327032536,-500.0,0.00011725,2]
[400303091,1767327032545,-500.0,0.00011725,2]
[400303092,1767327032554,-500.0,0.00011725,2]
[400303093,1767327032563,-600.0,0.00011725,2]
[400303094,1767327032575,-160.28836357,0.00011725,2]
[400303095,1767327032584,-35332.8482876,0.00011726,2]
[400303096,1767327032596,-693.73563817,0.00011726,2]
[400303109,1767327037798,-5077.4740295,0.00011726,2]
[400303110,1767327037810,-140915.77620609,0.00011726,2]
[400303120,1767327037904,-4854.02705653,0.00011726,2]
[400303122,1767327037916,-889.78,0.00011726,2]
[400303176,1767327044104,-601.94402996,0.00011726,2]
[400303181,1767327046161,-64230.12686456,0.00011726,2]
[400303284,1767327782458,1000.0,0.00028767,120]
[400303285,1767327801730,1000.0,0.00028767,120]
[400303286,1767327807598,1000.0,0.00028767,120]
[400303287,1767327812055,1000.0,0.00028767,120]
[400303391,1767328232890,-291.51992709,0.0001,2]
[400303392,1767328232918,-2401.50731006,0.0001,2]
[400303393,1767328232928,-152.74,0.0001,2]
[400303394,1767328232937,-150.0,0.00010161,2]
[400303395,1767328232947,-152.74,0.000104,2]
[400303396,1767328232956,-161.46647592,0.00010429,2]
[400303397,1767328233011,-465.89833563,0.00010429,2]
[400303414,1767328238035,-572.63518845,0.00010429,2]
[400303415,1767328238044,-531.22690156,0.0001043,2]
[400303416,1767328238091,-2662.43310844,0.0001043,2]
[400303417,1767328238101,-300.0,0.0001043,2]
[400303418,1767328238111,-3309.56870829,0.00010431,2]
[400303419,1767328238120,-300.0,0.00010638,2]
[400303420,1767328238130,-300.0,0.00010638,2]
[400303421,1767328238139,-300.0,0.00010638,2]
[400303422,1767328238152,-300.0,0.00010638,2]
[400303423,1767328238162,-300.0,0.00010638,2]
[400303424,1767328238171,-300.0,0.00010638,2]
[400303425,1767328238181,-300.0,0.00010638,2]
[400303426,1767328238191,-300.0,0.00010638,2]
[400303427,1767328238201,-300.0,0.00010638,2]
[400303428,1767328238210,-300.0,0.00010638,2]
[400303429,1767328238220,-300.0,0.00010638,2]
[400303430,1767328238231,-300.0,0.00010638,2]
[400303431,1767328238240,-127.99818327,0.00010638,2]
[400303432,1767328238252,-172.00181673,0.00010638,2]
[400303433,1767328238262,-300.0,0.00010638,2]
[400303434,1767328238271,-300.0,0.00010638,2]
[400303435,1767328238281,-1356.01075478,0.00010638,2]
[400303436,1767328238291,-94.63443583,0.00010765,2]
[400303437,1767328238302,-752.84795177,0.00010765,2]
[400303438,1767328238311,-1331.58148569,0.00010765,2]